[Event "December 19 Early 2023"]
[Site "https://www.chess.com"]
[Date "2023.12.19"]
[Round "2"]
[White "Quirke, Jeffrey"]
[Black "Fromm, Marius"]
[Result "0-1"]
[Board "118"]
[TimeControl "180+1"]
[WhiteFideId "2013029"]
[BlackFideId "12993190"]
[WhiteElo "2158"]
[BlackElo "2335"]
[WhiteTeam "USA"]
[BlackTeam "GER"]
[WhiteClock "0:00:00"]
[BlackClock "0:00:31"]

1. e4 {[%clk 0:03:00]}  c5 {[%clk 0:02:59]} 2. c3 {[%clk 0:03:00]}  d5 {[%clk 0:02:58]} 3. exd5 {[%clk 0:03:01]}  Qxd5 {[%clk 0:02:59]} 4. d4 {[%clk 0:03:01]}  Nf6 {[%clk 0:02:59]} 5. Nf3 {[%clk 0:03:00]}  e6 {[%clk 0:02:59]} 6. Be3 {[%clk 0:02:58]}  cxd4 {[%clk 0:02:57]} 7. cxd4 {[%clk 0:02:59]}  Bb4+ {[%clk 0:02:55]} 8. Nc3 {[%clk 0:03:00]}  Bd7 {[%clk 0:02:56]} 9. Bd3 {[%clk 0:02:40]}  Bb5 {[%clk 0:02:55]} 10. O-O {[%clk 0:02:40]}  Bxc3 {[%clk 0:02:55]} 11. bxc3 {[%clk 0:02:39]}  O-O {[%clk 0:02:54]} 12. Ne5 {[%clk 0:02:32]}  Bxd3 {[%clk 0:02:51]} 13. Qxd3 {[%clk 0:02:32]}  Nbd7 {[%clk 0:02:47]} 14. f4 {[%clk 0:02:18]}  Rac8 {[%clk 0:02:34]} 15. c4 {[%clk 0:02:08]}  Qd6 {[%clk 0:01:50]} 16. Rfd1 {[%clk 0:02:06]}  b6 {[%clk 0:01:46]} 17. a4 {[%clk 0:02:04]}  Rfd8 {[%clk 0:01:42]} 18. a5 {[%clk 0:01:58]}  g6 {[%clk 0:01:26]} 19. axb6 {[%clk 0:01:50]}  axb6 {[%clk 0:01:26]} 20. Ra7 {[%clk 0:01:46]}  Rc7 {[%clk 0:01:25]} 21. Rxc7 {[%clk 0:01:36]}  Qxc7 {[%clk 0:01:26]} 22. Bf2 {[%clk 0:01:22]}  Rc8 {[%clk 0:01:24]} 23. Rc1 {[%clk 0:01:19]}  Ne8 {[%clk 0:01:20]} 24. Bh4 {[%clk 0:01:12]}  Kg7 {[%clk 0:01:09]} 25. Bg3 {[%clk 0:00:30]}  Nd6 {[%clk 0:01:02]} 26. f5 {[%clk 0:00:20]}  Nxf5 {[%clk 0:01:01]} 27. Nxd7 {[%clk 0:00:14]}  Qxd7 {[%clk 0:00:54]} 28. Be5+ {[%clk 0:00:13]}  f6 {[%clk 0:00:54]} 29. g4 {[%clk 0:00:10]}  fxe5 {[%clk 0:00:53]} 30. gxf5 {[%clk 0:00:10]}  exf5 {[%clk 0:00:38]} 31. d5 {[%clk 0:00:09]}  Qd6 {[%clk 0:00:37]} 32. Rb1 {[%clk 0:00:08]}  Qc5+ {[%clk 0:00:36]} 33. Kg2 {[%clk 0:00:09]}  Qxc4 {[%clk 0:00:35]} 34. Qxc4 {[%clk 0:00:07]}  Rxc4 {[%clk 0:00:36]} 35. Rxb6 {[%clk 0:00:07]}  Rd4 {[%clk 0:00:36]} 36. Rd6 {[%clk 0:00:06]}  Rd2+ {[%clk 0:00:36]} 37. Kg3 {[%clk 0:00:05]}  Rd3+ {[%clk 0:00:34]} 38. Kg2 {[%clk 0:00:04]}  e4 {[%clk 0:00:31]} 39. Rd7+ {[%clk 0:00:03]}  Kf6 {[%clk 0:00:31]} 40. Rxh7 {[%clk 0:00:00]}  Rxd5 {[%clk 0:00:31]} 0-1

[Event "December 19 Early 2023"]
[Site "https://www.chess.com"]
[Date "2023.12.19"]
[Round "2"]
[White "Zepeda Berlanga, Jan Enrique"]
[Black "Smirnov, Alexandr A."]
[Result "0-1"]
[Board "119"]
[TimeControl "180+1"]
[WhiteFideId "5132355"]
[BlackFideId "24104396"]
[WhiteElo "1680"]
[BlackElo "2152"]
[WhiteTeam "MEX"]
[BlackTeam "RUS"]
[WhiteClock "0:00:31"]
[BlackClock "0:01:34"]

1. e4 {[%clk 0:03:00]}  c5 {[%clk 0:02:57]} 2. Nf3 {[%clk 0:02:56]}  d6 {[%clk 0:02:56]} 3. Bc4 {[%clk 0:02:56]}  Nf6 {[%clk 0:02:56]} 4. O-O {[%clk 0:02:55]}  g6 {[%clk 0:02:56]} 5. Re1 {[%clk 0:02:53]}  Bg7 {[%clk 0:02:56]} 6. h3 {[%clk 0:02:50]}  O-O {[%clk 0:02:55]} 7. d4 {[%clk 0:02:51]}  cxd4 {[%clk 0:02:55]} 8. Nxd4 {[%clk 0:02:50]}  Nc6 {[%clk 0:02:55]} 9. Nc3 {[%clk 0:02:42]}  Bd7 {[%clk 0:02:55]} 10. Be3 {[%clk 0:02:38]}  Rc8 {[%clk 0:02:54]} 11. Bb3 {[%clk 0:02:36]}  a6 {[%clk 0:02:54]} 12. Nd5 {[%clk 0:02:31]}  Nxe4 {[%clk 0:02:47]} 13. Nxc6 {[%clk 0:02:27]}  Bxc6 {[%clk 0:02:48]} 14. Bb6 {[%clk 0:02:26]}  Qd7 {[%clk 0:02:42]} 15. Rxe4 {[%clk 0:02:21]}  e6 {[%clk 0:02:43]} 16. Bd4 {[%clk 0:01:42]}  Bxd5 {[%clk 0:02:39]} 17. Bxd5 {[%clk 0:01:32]}  exd5 {[%clk 0:02:40]} 18. Bxg7 {[%clk 0:01:32]}  dxe4 {[%clk 0:02:32]} 19. Bxf8 {[%clk 0:01:29]}  Rxf8 {[%clk 0:02:32]} 20. Qd5 {[%clk 0:01:28]}  Qc6 {[%clk 0:02:30]} 21. c4 {[%clk 0:01:17]}  Qxd5 {[%clk 0:02:26]} 22. cxd5 {[%clk 0:01:17]}  Rc8 {[%clk 0:02:27]} 23. Re1 {[%clk 0:01:15]}  f5 {[%clk 0:02:27]} 24. f3 {[%clk 0:01:16]}  exf3 {[%clk 0:02:22]} 25. gxf3 {[%clk 0:01:15]}  Rc2 {[%clk 0:02:15]} 26. Re6 {[%clk 0:01:14]}  Rxb2 {[%clk 0:02:15]} 27. Rxd6 {[%clk 0:01:14]}  Rxa2 {[%clk 0:02:15]} 28. Rb6 {[%clk 0:01:14]}  Rd2 {[%clk 0:02:10]} 29. d6 {[%clk 0:01:14]}  a5 {[%clk 0:02:09]} 30. Rxb7 {[%clk 0:01:08]}  Rxd6 {[%clk 0:02:08]} 31. Ra7 {[%clk 0:01:09]}  Rd2 {[%clk 0:01:47]} 32. Rxa5 {[%clk 0:01:05]}  Kg7 {[%clk 0:01:47]} 33. Re5 {[%clk 0:01:00]}  Kf6 {[%clk 0:01:46]} 34. Re8 {[%clk 0:01:00]}  Kg5 {[%clk 0:01:43]} 35. Re7 {[%clk 0:00:50]}  Kf4 {[%clk 0:01:40]} 36. Rxh7 {[%clk 0:00:46]}  Kg3 {[%clk 0:01:41]} 37. Kf1 {[%clk 0:00:43]}  Kxf3 {[%clk 0:01:41]} 38. Ke1 {[%clk 0:00:42]}  Re2+ {[%clk 0:01:40]} 39. Kf1 {[%clk 0:00:42]}  Ra2 {[%clk 0:01:39]} 40. Kg1 {[%clk 0:00:40]}  Kg3 {[%clk 0:01:37]} 41. Kf1 {[%clk 0:00:38]}  f4 {[%clk 0:01:37]} 42. Rf7 {[%clk 0:00:38]}  f3 {[%clk 0:01:36]} 43. Ke1 {[%clk 0:00:36]}  f2+ {[%clk 0:01:34]} 44. Kf1 {[%clk 0:00:35]}  Ra1+ {[%clk 0:01:33]} 45. Ke2 {[%clk 0:00:31]}  Re1+ {[%clk 0:01:34]} 0-1

[Event "December 19 Early 2023"]
[Site "https://www.chess.com"]
[Date "2023.12.19"]
[Round "2"]
[White "UnTucopalaTimba"]
[Black "Skliarov, Viktor"]
[Result "0-1"]
[Board "120"]
[TimeControl "180+1"]
[BlackFideId "14106736"]
[WhiteElo "1673"]
[BlackElo "2301"]
[BlackTeam "UKR"]
[WhiteClock "0:00:12"]
[BlackClock "0:00:49"]

1. e4 {[%clk 0:02:59]}  c5 {[%clk 0:02:59]} 2. Nf3 {[%clk 0:02:58]}  Nc6 {[%clk 0:02:59]} 3. d4 {[%clk 0:02:57]}  cxd4 {[%clk 0:02:59]} 4. Nxd4 {[%clk 0:02:57]}  Nf6 {[%clk 0:02:59]} 5. Nc3 {[%clk 0:02:51]}  e5 {[%clk 0:02:58]} 6. Ndb5 {[%clk 0:02:48]}  d6 {[%clk 0:02:58]} 7. Bg5 {[%clk 0:02:42]}  a6 {[%clk 0:02:58]} 8. Na3 {[%clk 0:02:41]}  b5 {[%clk 0:02:58]} 9. Nd5 {[%clk 0:02:38]}  Be7 {[%clk 0:02:58]} 10. Bxf6 {[%clk 0:02:34]}  Bxf6 {[%clk 0:02:58]} 11. c3 {[%clk 0:02:31]}  Bg5 {[%clk 0:02:57]} 12. Nc2 {[%clk 0:02:28]}  O-O {[%clk 0:02:56]} 13. Be2 {[%clk 0:02:27]}  Ne7 {[%clk 0:02:51]} 14. Nce3 {[%clk 0:02:22]}  Bxe3 {[%clk 0:02:49]} 15. Nxe3 {[%clk 0:02:22]}  Bb7 {[%clk 0:02:49]} 16. Qc2 {[%clk 0:02:14]}  f5 {[%clk 0:02:31]} 17. exf5 {[%clk 0:02:07]}  d5 {[%clk 0:02:31]} 18. O-O-O {[%clk 0:01:59]}  d4 {[%clk 0:02:21]} 19. Qb3+ {[%clk 0:01:35]}  Kh8 {[%clk 0:02:20]} 20. Rhg1 {[%clk 0:01:30]}  Qc7 {[%clk 0:01:53]} 21. Nc2 {[%clk 0:01:12]}  Nxf5 {[%clk 0:01:41]} 22. g4 {[%clk 0:01:04]}  Nh4 {[%clk 0:01:30]} 23. cxd4 {[%clk 0:01:02]}  Rxf2 {[%clk 0:01:21]} 24. Bd3 {[%clk 0:00:54]}  e4 {[%clk 0:00:59]} 25. Bf1 {[%clk 0:00:44]}  Rc8 {[%clk 0:00:58]} 26. Kb1 {[%clk 0:00:33]}  Qxc2+ {[%clk 0:00:54]} 27. Qxc2 {[%clk 0:00:32]}  Rcxc2 {[%clk 0:00:54]} 28. d5 {[%clk 0:00:27]}  Rxb2+ {[%clk 0:00:54]} 29. Ka1 {[%clk 0:00:26]}  Rxa2+ {[%clk 0:00:54]} 30. Kb1 {[%clk 0:00:26]}  Rfb2+ {[%clk 0:00:52]} 31. Kc1 {[%clk 0:00:25]}  Ra1+ {[%clk 0:00:52]} 32. Kxb2 {[%clk 0:00:24]}  Rxd1 {[%clk 0:00:53]} 33. d6 {[%clk 0:00:20]}  Rxd6 {[%clk 0:00:49]} 34. Be2 {[%clk 0:00:12]}  Rd2+ {[%clk 0:00:49]} 0-1

[Event "December 19 Early 2023"]
[Site "https://www.chess.com"]
[Date "2023.12.19"]
[Round "2"]
[White "Bernadskiy, Vitaliy"]
[Black "Kovalyov, Eduard"]
[Result "1-0"]
[Board "123"]
[TimeControl "180+1"]
[WhiteFideId "14100371"]
[BlackFideId "14118033"]
[WhiteElo "2494"]
[BlackElo "2300"]
[WhiteTeam "UKR"]
[BlackTeam "UKR"]
[WhiteClock "0:01:53"]
[BlackClock "0:01:34"]

1. b3 {[%clk 0:03:00]}  d5 {[%clk 0:02:56]} 2. e3 {[%clk 0:03:00]}  Nf6 {[%clk 0:02:55]} 3. Bb2 {[%clk 0:03:00]}  Bf5 {[%clk 0:02:56]} 4. Ne2 {[%clk 0:03:00]}  e6 {[%clk 0:02:56]} 5. h3 {[%clk 0:03:00]}  Be7 {[%clk 0:02:56]} 6. d3 {[%clk 0:03:01]}  O-O {[%clk 0:02:56]} 7. g4 {[%clk 0:03:01]}  Bg6 {[%clk 0:02:56]} 8. Nf4 {[%clk 0:02:59]}  c5 {[%clk 0:02:55]} 9. h4 {[%clk 0:02:59]}  h6 {[%clk 0:02:50]} 10. g5 {[%clk 0:02:56]}  hxg5 {[%clk 0:02:40]} 11. hxg5 {[%clk 0:02:55]}  Nh7 {[%clk 0:02:41]} 12. Nxg6 {[%clk 0:02:34]}  fxg6 {[%clk 0:02:41]} 13. Qg4 {[%clk 0:02:24]}  Rf5 {[%clk 0:02:18]} 14. e4 {[%clk 0:02:11]}  Rxg5 {[%clk 0:02:04]} 15. Qxe6+ {[%clk 0:02:11]}  Kh8 {[%clk 0:02:04]} 16. Nd2 {[%clk 0:01:57]}  Nc6 {[%clk 0:01:54]} 17. Nf3 {[%clk 0:01:57]}  Rh5 {[%clk 0:01:51]} 18. Rxh5 {[%clk 0:01:56]}  gxh5 {[%clk 0:01:52]} 19. exd5 {[%clk 0:01:55]}  Nb4 {[%clk 0:01:47]} 20. Ne5 {[%clk 0:01:54]}  Qxd5 {[%clk 0:01:34]} 21. Ng6# {[%clk 0:01:53]} 1-0

[Event "December 19 Early 2023"]
[Site "https://www.chess.com"]
[Date "2023.12.19"]
[Round "2"]
[White "Flynn, Jacob"]
[Black "Alexandre, Anne Shopie Elizabeth"]
[Result "0-1"]
[Board "124"]
[TimeControl "180+1"]
[WhiteFideId "2509393"]
[BlackFideId "11902418"]
[WhiteElo "2100"]
[BlackElo "2824"]
[WhiteTeam "IRL"]
[BlackTeam "HAI"]
[WhiteClock "0:01:58"]
[BlackClock "0:02:08"]

1. d4 {[%clk 0:03:00]}  d6 {[%clk 0:03:00]} 2. Nf3 {[%clk 0:03:00]}  Nf6 {[%clk 0:03:01]} 3. g3 {[%clk 0:03:01]}  g6 {[%clk 0:03:01]} 4. Bg2 {[%clk 0:03:02]}  Bg7 {[%clk 0:03:01]} 5. O-O {[%clk 0:03:02]}  O-O {[%clk 0:03:02]} 6. c4 {[%clk 0:03:03]}  Nc6 {[%clk 0:03:01]} 7. Nc3 {[%clk 0:03:03]}  Bf5 {[%clk 0:03:01]} 8. Nh4 {[%clk 0:03:02]}  Bd7 {[%clk 0:03:00]} 9. Nf3 {[%clk 0:02:56]}  a6 {[%clk 0:02:57]} 10. b3 {[%clk 0:02:54]}  Rb8 {[%clk 0:02:56]} 11. Bb2 {[%clk 0:02:54]}  b5 {[%clk 0:02:55]} 12. cxb5 {[%clk 0:02:52]}  axb5 {[%clk 0:02:56]} 13. Rc1 {[%clk 0:02:50]}  b4 {[%clk 0:02:51]} 14. Nb1 {[%clk 0:02:45]}  Na7 {[%clk 0:02:48]} 15. Nbd2 {[%clk 0:02:44]}  Nb5 {[%clk 0:02:48]} 16. Nc4 {[%clk 0:02:40]}  Nd5 {[%clk 0:02:32]} 17. Qd3 {[%clk 0:02:33]}  c6 {[%clk 0:02:25]} 18. Rc2 {[%clk 0:02:28]}  Ndc3 {[%clk 0:02:22]} 19. a4 {[%clk 0:02:22]}  Bf5 {[%clk 0:02:21]} 20. Qd2 {[%clk 0:02:16]}  Bxc2 {[%clk 0:02:20]} 21. Qxc2 {[%clk 0:02:16]}  Na7 {[%clk 0:02:20]} 22. Bxc3 {[%clk 0:02:17]}  bxc3 {[%clk 0:02:20]} 23. Qxc3 {[%clk 0:02:17]}  c5 {[%clk 0:02:19]} 24. e3 {[%clk 0:02:17]}  Nc6 {[%clk 0:02:18]} 25. Qd2 {[%clk 0:02:15]}  cxd4 {[%clk 0:02:17]} 26. Nxd4 {[%clk 0:02:09]}  Nxd4 {[%clk 0:02:16]} 27. exd4 {[%clk 0:02:10]}  Rxb3 {[%clk 0:02:16]} 28. Ra1 {[%clk 0:02:10]}  Qc7 {[%clk 0:02:14]} 29. Bf1 {[%clk 0:01:58]}  Qa7 {[%clk 0:02:08]} 0-1

[Event "December 19 Early 2023"]
[Site "https://www.chess.com"]
[Date "2023.12.19"]
[Round "2"]
[White "Matinian, Nikita"]
[Black "Porozhnyak, Maya"]
[Result "1-0"]
[Board "126"]
[TimeControl "180+1"]
[WhiteFideId "24129100"]
[BlackFideId "34115843"]
[WhiteElo "2417"]
[BlackElo "1932"]
[WhiteTeam "FID"]
[BlackTeam "RUS"]
[WhiteClock "0:00:44"]
[BlackClock "0:00:07"]

1. e4 {[%clk 0:03:00]}  c5 {[%clk 0:03:00]} 2. Nc3 {[%clk 0:03:00]}  e6 {[%clk 0:03:00]} 3. d4 {[%clk 0:02:59]}  cxd4 {[%clk 0:03:00]} 4. Qxd4 {[%clk 0:03:00]}  a6 {[%clk 0:03:00]} 5. Nf3 {[%clk 0:02:59]}  Nc6 {[%clk 0:02:59]} 6. Qe3 {[%clk 0:02:59]}  Qc7 {[%clk 0:02:59]} 7. Bd2 {[%clk 0:02:59]}  b5 {[%clk 0:02:59]} 8. O-O-O {[%clk 0:02:59]}  Bb7 {[%clk 0:02:56]} 9. Nd5 {[%clk 0:02:55]}  exd5 {[%clk 0:02:24]} 10. exd5+ {[%clk 0:02:56]}  Nce7 {[%clk 0:02:24]} 11. Bb4 {[%clk 0:02:35]}  d6 {[%clk 0:02:22]} 12. Ng5 {[%clk 0:02:35]}  h6 {[%clk 0:01:48]} 13. Nxf7 {[%clk 0:02:12]}  Kxf7 {[%clk 0:01:46]} 14. Qe6+ {[%clk 0:02:12]}  Ke8 {[%clk 0:01:45]} 15. Bd3 {[%clk 0:02:13]}  Nf6 {[%clk 0:01:11]} 16. Rhe1 {[%clk 0:02:03]}  Bxd5 {[%clk 0:00:50]} 17. Bg6+ {[%clk 0:02:02]}  Kd8 {[%clk 0:00:51]} 18. Rxd5 {[%clk 0:01:58]}  Nfxd5 {[%clk 0:00:52]} 19. Qf7 {[%clk 0:01:33]}  Nf6 {[%clk 0:00:45]} 20. Be4 {[%clk 0:01:12]}  d5 {[%clk 0:00:33]} 21. Bf3 {[%clk 0:01:09]}  Rc8 {[%clk 0:00:31]} 22. c3 {[%clk 0:01:09]}  a5 {[%clk 0:00:25]} 23. Bxe7+ {[%clk 0:00:58]}  Qxe7 {[%clk 0:00:22]} 24. Rxe7 {[%clk 0:00:57]}  Bxe7 {[%clk 0:00:21]} 25. Qxg7 {[%clk 0:00:50]}  Rg8 {[%clk 0:00:20]} 26. Qxh6 {[%clk 0:00:51]}  Ne4 {[%clk 0:00:16]} 27. Qb6+ {[%clk 0:00:48]}  Rc7 {[%clk 0:00:14]} 28. Qxb5 {[%clk 0:00:45]}  Nxf2 {[%clk 0:00:10]} 29. Qxd5+ {[%clk 0:00:44]}  Rd7 {[%clk 0:00:07]} 30. Qxg8+ {[%clk 0:00:44]}  Kc7 {[%clk 0:00:08]} 31. Qg3+ {[%clk 0:00:43]}  Bd6 {[%clk 0:00:05]} 32. Qxf2 {[%clk 0:00:42]}  Bf4+ {[%clk 0:00:06]} 33. Kc2 {[%clk 0:00:43]}  Rd2+ {[%clk 0:00:06]} 34. Qxd2 {[%clk 0:00:43]}  Bxd2 {[%clk 0:00:07]} 35. Kxd2 {[%clk 0:00:43]}  Kd6 {[%clk 0:00:08]} 36. Kd3 {[%clk 0:00:44]}  Ke5 {[%clk 0:00:07]} 37. g3 {[%clk 0:00:44]} 1-0

[Event "December 19 Early 2023"]
[Site "https://www.chess.com"]
[Date "2023.12.19"]
[Round "2"]
[White "Krzyzanowski, Marcin"]
[Black "Matveeva, Olga"]
[Result "1-0"]
[Board "127"]
[TimeControl "180+1"]
[WhiteFideId "1132199"]
[BlackFideId "24107018"]
[WhiteElo "2471"]
[BlackElo "1883"]
[WhiteTeam "POL"]
[BlackTeam "RUS"]
[WhiteClock "0:02:15"]
[BlackClock "0:00:21"]

1. e4 {[%clk 0:03:00]}  c6 {[%clk 0:03:00]} 2. d4 {[%clk 0:02:59]}  d5 {[%clk 0:03:00]} 3. Nc3 {[%clk 0:02:59]}  dxe4 {[%clk 0:03:00]} 4. Nxe4 {[%clk 0:03:00]}  Nf6 {[%clk 0:03:00]} 5. Nxf6+ {[%clk 0:03:00]}  exf6 {[%clk 0:03:01]} 6. c3 {[%clk 0:03:01]}  Bd6 {[%clk 0:03:00]} 7. Bd3 {[%clk 0:03:01]}  O-O {[%clk 0:03:00]} 8. Ne2 {[%clk 0:03:01]}  Re8 {[%clk 0:03:00]} 9. O-O {[%clk 0:02:59]}  Nd7 {[%clk 0:03:00]} 10. Ng3 {[%clk 0:02:59]}  Nf8 {[%clk 0:02:55]} 11. f4 {[%clk 0:02:58]}  c5 {[%clk 0:02:50]} 12. d5 {[%clk 0:02:56]}  Bd7 {[%clk 0:02:44]} 13. c4 {[%clk 0:02:56]}  Rb8 {[%clk 0:02:36]} 14. a4 {[%clk 0:02:47]}  a6 {[%clk 0:02:36]} 15. a5 {[%clk 0:02:46]}  b5 {[%clk 0:02:36]} 16. axb6 {[%clk 0:02:46]}  Qxb6 {[%clk 0:02:34]} 17. Ra3 {[%clk 0:02:41]}  a5 {[%clk 0:02:33]} 18. Nh5 {[%clk 0:02:38]}  a4 {[%clk 0:02:28]} 19. f5 {[%clk 0:02:35]}  Kh8 {[%clk 0:02:07]} 20. Qg4 {[%clk 0:02:33]}  Ng6 {[%clk 0:02:07]} 21. Bb1 {[%clk 0:02:24]}  Rg8 {[%clk 0:02:04]} 22. Rh3 {[%clk 0:02:22]}  Ne5 {[%clk 0:00:45]} 23. Nxf6 {[%clk 0:02:15]}  gxf6 {[%clk 0:00:25]} 24. Rxh7+ {[%clk 0:02:14]}  Kxh7 {[%clk 0:00:21]} 25. Qh5+ {[%clk 0:02:15]} 1-0

[Event "December 19 Early 2023"]
[Site "https://www.chess.com"]
[Date "2023.12.19"]
[Round "2"]
[White "Kornyukov, Alexey"]
[Black "Mendoza, Rodrigo"]
[Result "0-1"]
[Board "129"]
[TimeControl "180+1"]
[WhiteFideId "4150457"]
[BlackFideId "3301931"]
[WhiteElo "2352"]
[BlackElo "2111"]
[WhiteTeam "RUS"]
[BlackTeam "BOL"]
[WhiteClock "0:00:07"]
[BlackClock "0:00:19"]

1. e4 {[%clk 0:02:57]}  c6 {[%clk 0:02:59]} 2. d4 {[%clk 0:02:56]}  d5 {[%clk 0:03:00]} 3. Nc3 {[%clk 0:02:53]}  dxe4 {[%clk 0:03:00]} 4. Nxe4 {[%clk 0:02:53]}  Bf5 {[%clk 0:03:01]} 5. Ng3 {[%clk 0:02:52]}  Bg6 {[%clk 0:03:02]} 6. h4 {[%clk 0:02:53]}  h6 {[%clk 0:03:02]} 7. h5 {[%clk 0:02:52]}  Bh7 {[%clk 0:03:02]} 8. Bc4 {[%clk 0:02:48]}  e6 {[%clk 0:03:02]} 9. Nf3 {[%clk 0:02:47]}  Nf6 {[%clk 0:03:01]} 10. Bf4 {[%clk 0:02:45]}  Bd6 {[%clk 0:03:01]} 11. Be5 {[%clk 0:02:42]}  O-O {[%clk 0:02:51]} 12. Qe2 {[%clk 0:02:35]}  Nd5 {[%clk 0:02:45]} 13. O-O-O {[%clk 0:02:29]}  Nf4 {[%clk 0:02:31]} 14. Bxf4 {[%clk 0:02:21]}  Bxf4+ {[%clk 0:02:30]} 15. Kb1 {[%clk 0:02:20]}  Nd7 {[%clk 0:02:26]} 16. Ne5 {[%clk 0:02:14]}  Qc7 {[%clk 0:02:12]} 17. Nxf7 {[%clk 0:01:46]}  Rxf7 {[%clk 0:02:06]} 18. Bxe6 {[%clk 0:01:46]}  Nb6 {[%clk 0:01:58]} 19. Qg4 {[%clk 0:01:39]}  Kh8 {[%clk 0:01:31]} 20. Bxf7 {[%clk 0:01:31]}  Qxf7 {[%clk 0:01:32]} 21. Rhe1 {[%clk 0:01:22]}  Nd5 {[%clk 0:01:26]} 22. Ne4 {[%clk 0:01:05]}  Nb4 {[%clk 0:01:06]} 23. b3 {[%clk 0:01:04]}  Re8 {[%clk 0:01:03]} 24. f3 {[%clk 0:00:58]}  Nd5 {[%clk 0:01:02]} 25. Qh3 {[%clk 0:00:36]}  Bf5 {[%clk 0:00:48]} 26. Qh1 {[%clk 0:00:35]}  Bxe4 {[%clk 0:00:47]} 27. Rxe4 {[%clk 0:00:34]}  Nc3+ {[%clk 0:00:47]} 28. Ka1 {[%clk 0:00:29]}  Nxe4 {[%clk 0:00:46]} 29. fxe4 {[%clk 0:00:28]}  Rxe4 {[%clk 0:00:47]} 30. Qh3 {[%clk 0:00:26]}  Qd5 {[%clk 0:00:39]} 31. Qc8+ {[%clk 0:00:24]}  Kh7 {[%clk 0:00:39]} 32. c3 {[%clk 0:00:21]}  Re2 {[%clk 0:00:35]} 33. Qg4 {[%clk 0:00:17]}  Qe4 {[%clk 0:00:30]} 34. g3 {[%clk 0:00:12]}  Bg5 {[%clk 0:00:23]} 35. Qd7 {[%clk 0:00:07]}  Qc2 {[%clk 0:00:19]} 0-1

[Event "December 19 Early 2023"]
[Site "https://www.chess.com"]
[Date "2023.12.19"]
[Round "2"]
[White "Ozates, Tuna"]
[Black "Shimanov, Aleksandr"]
[Result "1-0"]
[Board "131"]
[TimeControl "180+1"]
[WhiteFideId "6354521"]
[BlackFideId "4198603"]
[WhiteElo "2151"]
[BlackElo "2611"]
[WhiteTeam "TUR"]
[BlackTeam "RUS"]
[WhiteClock "0:00:10"]
[BlackClock "0:00:00"]

1. c4 {[%clk 0:03:00]}  g6 {[%clk 0:02:58]} 2. Nc3 {[%clk 0:03:01]}  Bg7 {[%clk 0:02:57]} 3. g3 {[%clk 0:03:01]}  c6 {[%clk 0:02:56]} 4. e4 {[%clk 0:02:56]}  d6 {[%clk 0:02:56]} 5. Bg2 {[%clk 0:02:56]}  h5 {[%clk 0:02:55]} 6. h3 {[%clk 0:02:56]}  e5 {[%clk 0:02:52]} 7. Nge2 {[%clk 0:02:55]}  h4 {[%clk 0:02:51]} 8. g4 {[%clk 0:02:53]}  g5 {[%clk 0:02:50]} 9. d4 {[%clk 0:02:51]}  f6 {[%clk 0:02:37]} 10. Be3 {[%clk 0:02:51]}  Ne7 {[%clk 0:02:36]} 11. c5 {[%clk 0:02:48]}  Ng6 {[%clk 0:02:15]} 12. d5 {[%clk 0:02:40]}  dxc5 {[%clk 0:02:11]} 13. Bxc5 {[%clk 0:02:39]}  Na6 {[%clk 0:02:11]} 14. Ba3 {[%clk 0:02:38]}  b5 {[%clk 0:01:51]} 15. Qb3 {[%clk 0:02:35]}  b4 {[%clk 0:01:47]} 16. Bxb4 {[%clk 0:02:10]}  c5 {[%clk 0:01:47]} 17. Ba3 {[%clk 0:02:05]}  O-O {[%clk 0:01:43]} 18. Qc4 {[%clk 0:02:00]}  Qa5 {[%clk 0:01:34]} 19. O-O {[%clk 0:01:58]}  Bd7 {[%clk 0:01:33]} 20. Rfd1 {[%clk 0:01:55]}  Kh7 {[%clk 0:01:29]} 21. Bf1 {[%clk 0:01:47]}  Nb4 {[%clk 0:01:27]} 22. Rac1 {[%clk 0:01:41]}  Rfc8 {[%clk 0:01:26]} 23. d6 {[%clk 0:01:39]}  Nf8 {[%clk 0:01:15]} 24. Nd5 {[%clk 0:01:33]}  Rab8 {[%clk 0:00:44]} 25. Nc7 {[%clk 0:01:10]}  Rb6 {[%clk 0:00:17]} 26. Qxc5 {[%clk 0:00:56]}  Qxc5 {[%clk 0:00:17]} 27. Rxc5 {[%clk 0:00:57]}  Nxa2 {[%clk 0:00:18]} 28. Ra5 {[%clk 0:00:55]}  Nb4 {[%clk 0:00:09]} 29. Rxa7 {[%clk 0:00:54]}  Nc2 {[%clk 0:00:09]} 30. Nd5 {[%clk 0:00:39]}  Rb3 {[%clk 0:00:09]} 31. Nec3 {[%clk 0:00:32]}  Nd4 {[%clk 0:00:09]} 32. Ba6 {[%clk 0:00:28]}  Rd8 {[%clk 0:00:09]} 33. Bc4 {[%clk 0:00:26]}  Rbb8 {[%clk 0:00:09]} 34. Nc7 {[%clk 0:00:17]}  Ng6 {[%clk 0:00:08]} 35. N3d5 {[%clk 0:00:16]}  Nf3+ {[%clk 0:00:05]} 36. Kg2 {[%clk 0:00:14]}  Nd4 {[%clk 0:00:06]} 37. b4 {[%clk 0:00:11]}  Nc6 {[%clk 0:00:06]} 38. Ra6 {[%clk 0:00:09]}  Nd4 {[%clk 0:00:07]} 39. Ra5 {[%clk 0:00:09]}  Nc2 {[%clk 0:00:05]} 40. b5 {[%clk 0:00:08]}  Nxa3 {[%clk 0:00:04]} 41. Rxa3 {[%clk 0:00:09]}  Kh6 {[%clk 0:00:02]} 42. b6 {[%clk 0:00:09]}  Nf8 {[%clk 0:00:02]} 43. Rb1 {[%clk 0:00:09]}  Bc6 {[%clk 0:00:03]} 44. Ra7 {[%clk 0:00:08]}  Nd7 {[%clk 0:00:03]} 45. Ne6 {[%clk 0:00:08]}  Rg8 {[%clk 0:00:02]} 46. Ne7 {[%clk 0:00:08]}  Rgc8 {[%clk 0:00:01]} 47. Nxc6 {[%clk 0:00:08]}  Rxc6 {[%clk 0:00:01]} 48. Rxd7 {[%clk 0:00:08]}  Bf8 {[%clk 0:00:01]} 49. Bd5 {[%clk 0:00:08]}  Rxd6 {[%clk 0:00:01]} 50. Rxd6 {[%clk 0:00:08]}  Bxd6 {[%clk 0:00:02]} 51. b7 {[%clk 0:00:09]}  Re8 {[%clk 0:00:02]} 52. Rc1 {[%clk 0:00:10]}  Re7 {[%clk 0:00:01]} 53. Rc8 {[%clk 0:00:09]}  Kg6 {[%clk 0:00:00]} 54. b8=Q {[%clk 0:00:10]} 1-0